[Event "Titled Tuesday Blitz October 31 Early 2023"]
[White "MarijaKuznecova"]
[Black "Csonka, Balazs"]
[BlackFideId "742910"]
[WhiteElo "2386"]
[BlackElo "2724"]
[Result "0-1"]
[Round "1"]
[TimeControl "180+1"]
[Date "2023.10.31"]
[WhiteClock "0:00:02"]
[BlackClock "0:00:18"]
[Board "90"]

1. e4 {[%clk 0:02:59]}  c5 {[%clk 0:03:00]} 2. Nf3 {[%clk 0:02:59]}  d6 {[%clk 0:02:59]} 3. d4 {[%clk 0:02:59]}  cxd4 {[%clk 0:03:00]} 4. Nxd4 {[%clk 0:02:59]}  Nf6 {[%clk 0:03:00]} 5. Nc3 {[%clk 0:02:58]}  Nc6 {[%clk 0:02:54]} 6. Bg5 {[%clk 0:02:57]}  e6 {[%clk 0:02:50]} 7. Qd3 {[%clk 0:02:54]}  Be7 {[%clk 0:02:28]} 8. O-O-O {[%clk 0:02:50]}  O-O {[%clk 0:02:27]} 9. f4 {[%clk 0:02:31]}  Qb6 {[%clk 0:02:18]} 10. Ndb5 {[%clk 0:02:05]}  Rd8 {[%clk 0:01:55]} 11. Qg3 {[%clk 0:01:31]}  Kh8 {[%clk 0:01:33]} 12. f5 {[%clk 0:01:16]}  Ne5 {[%clk 0:01:20]} 13. Bf4 {[%clk 0:00:48]}  exf5 {[%clk 0:01:02]} 14. Bg5 {[%clk 0:00:23]}  Be6 {[%clk 0:00:47]} 15. exf5 {[%clk 0:00:20]}  Bxf5 {[%clk 0:00:46]} 16. Bd3 {[%clk 0:00:10]}  Nxd3+ {[%clk 0:00:40]} 17. cxd3 {[%clk 0:00:11]}  Rac8 {[%clk 0:00:35]} 18. Kb1 {[%clk 0:00:10]}  Bg6 {[%clk 0:00:32]} 19. Be3 {[%clk 0:00:07]}  Qa5 {[%clk 0:00:30]} 20. Nxa7 {[%clk 0:00:06]}  Rxc3 {[%clk 0:00:25]} 21. bxc3 {[%clk 0:00:07]}  Nd5 {[%clk 0:00:21]} 22. Bd4 {[%clk 0:00:06]}  Nxc3+ {[%clk 0:00:20]} 23. Bxc3 {[%clk 0:00:07]}  Qxc3 {[%clk 0:00:21]} 24. Qe3 {[%clk 0:00:05]}  Bf6 {[%clk 0:00:19]} 25. Nb5 {[%clk 0:00:02]}  Qb2# {[%clk 0:00:18]} 0-1


[Site "https://www.chess.com"]

[Event "Titled Tuesday Blitz October 31 Early 2023"]
[White "carokannlover213"]
[Black "Kovalevsky, Stanislav"]
[BlackFideId "13508598"]
[WhiteElo "2721"]
[BlackElo "2382"]
[Result "1-0"]
[Round "1"]
[TimeControl "180+1"]
[Date "2023.10.31"]
[WhiteClock "0:00:37"]
[BlackClock "0:00:04"]
[Board "93"]

1. e4 {[%clk 0:03:00]}  c6 {[%clk 0:02:58]} 2. d4 {[%clk 0:02:57]}  d5 {[%clk 0:02:59]} 3. exd5 {[%clk 0:02:58]}  cxd5 {[%clk 0:03:00]} 4. c4 {[%clk 0:02:59]}  Nf6 {[%clk 0:03:00]} 5. Nc3 {[%clk 0:02:59]}  g6 {[%clk 0:03:00]} 6. Qb3 {[%clk 0:02:57]}  Bg7 {[%clk 0:03:00]} 7. cxd5 {[%clk 0:02:57]}  O-O {[%clk 0:02:59]} 8. a4 {[%clk 0:02:57]}  e6 {[%clk 0:02:54]} 9. dxe6 {[%clk 0:02:32]}  Bxe6 {[%clk 0:02:53]} 10. Qxb7 {[%clk 0:02:13]}  Nbd7 {[%clk 0:01:34]} 11. Nf3 {[%clk 0:02:09]}  Re8 {[%clk 0:01:31]} 12. Be2 {[%clk 0:02:03]}  Bc4 {[%clk 0:01:27]} 13. Be3 {[%clk 0:02:03]}  Bxe2 {[%clk 0:01:26]} 14. Nxe2 {[%clk 0:02:03]}  Ng4 {[%clk 0:01:24]} 15. O-O {[%clk 0:01:53]}  Nxe3 {[%clk 0:01:23]} 16. fxe3 {[%clk 0:01:53]}  Rxe3 {[%clk 0:01:23]} 17. Nc3 {[%clk 0:01:48]}  Rb8 {[%clk 0:01:19]} 18. Qd5 {[%clk 0:01:16]}  Rxb2 {[%clk 0:01:11]} 19. Ng5 {[%clk 0:01:00]}  h6 {[%clk 0:00:15]} 20. Nxf7 {[%clk 0:00:56]}  Qe7 {[%clk 0:00:13]} 21. Ne5+ {[%clk 0:00:44]}  Kh7 {[%clk 0:00:13]} 22. Rf7 {[%clk 0:00:44]}  Rxg2+ {[%clk 0:00:11]} 23. Qxg2 {[%clk 0:00:40]}  Qxe5 {[%clk 0:00:09]} 24. dxe5 {[%clk 0:00:38]}  Nxe5 {[%clk 0:00:10]} 25. Nd5 {[%clk 0:00:37]}  Nxf7 {[%clk 0:00:08]} 26. Nxe3 {[%clk 0:00:36]}  Bxa1 {[%clk 0:00:08]} 27. Qb7 {[%clk 0:00:36]}  Kg7 {[%clk 0:00:06]} 28. Qxa7 {[%clk 0:00:36]}  Kf6 {[%clk 0:00:06]} 29. Ng4+ {[%clk 0:00:35]}  Kg5 {[%clk 0:00:06]} 30. Qxf7 {[%clk 0:00:35]}  Kxg4 {[%clk 0:00:04]} 31. Qxg6+ {[%clk 0:00:35]}  Kf3 {[%clk 0:00:04]} 32. Qc6+ {[%clk 0:00:36]}  Ke2 {[%clk 0:00:04]} 33. Qb5+ {[%clk 0:00:36]}  Kf3 {[%clk 0:00:04]} 34. Kf1 {[%clk 0:00:37]} 1-0


[Site "https://www.chess.com"]

[Event "Titled Tuesday Blitz October 31 Early 2023"]
[White "Jakubowski, Krzysztof"]
[Black "Goswami, Vedant"]
[WhiteFideId "1112848"]
[BlackFideId "5003725"]
[WhiteElo "2710"]
[BlackElo "2372"]
[Result "1-0"]
[Round "1"]
[TimeControl "180+1"]
[Date "2023.10.31"]
[WhiteClock "0:00:22"]
[BlackClock "0:00:00"]
[Board "97"]

1. e4 {[%clk 0:03:00]}  e5 {[%clk 0:02:57]} 2. Nf3 {[%clk 0:02:59]}  Nc6 {[%clk 0:02:56]} 3. Bc4 {[%clk 0:02:58]}  Bc5 {[%clk 0:02:51]} 4. d3 {[%clk 0:02:56]}  Nf6 {[%clk 0:02:50]} 5. O-O {[%clk 0:02:56]}  d6 {[%clk 0:02:49]} 6. c3 {[%clk 0:02:55]}  a5 {[%clk 0:02:45]} 7. h3 {[%clk 0:02:52]}  Ba7 {[%clk 0:02:43]} 8. Na3 {[%clk 0:02:50]}  h6 {[%clk 0:02:42]} 9. Re1 {[%clk 0:02:49]}  O-O {[%clk 0:02:35]} 10. Nb5 {[%clk 0:02:37]}  Bb6 {[%clk 0:02:34]} 11. d4 {[%clk 0:02:37]}  exd4 {[%clk 0:02:27]} 12. Nbxd4 {[%clk 0:02:36]}  Ne5 {[%clk 0:02:23]} 13. Bf1 {[%clk 0:02:34]}  Bd7 {[%clk 0:02:18]} 14. Nh4 {[%clk 0:02:30]}  Re8 {[%clk 0:02:12]} 15. Ndf5 {[%clk 0:02:28]}  Ng6 {[%clk 0:01:56]} 16. Nxg6 {[%clk 0:02:21]}  fxg6 {[%clk 0:01:55]} 17. Ng3 {[%clk 0:02:21]}  Bc6 {[%clk 0:01:48]} 18. Be3 {[%clk 0:02:10]}  Bxe3 {[%clk 0:01:42]} 19. Rxe3 {[%clk 0:02:09]}  Kh7 {[%clk 0:01:37]} 20. Qc2 {[%clk 0:02:04]}  a4 {[%clk 0:01:33]} 21. Bd3 {[%clk 0:02:02]}  Nd7 {[%clk 0:01:27]} 22. f4 {[%clk 0:02:01]}  Nc5 {[%clk 0:01:25]} 23. Be2 {[%clk 0:01:41]}  Qh4 {[%clk 0:01:23]} 24. Rf1 {[%clk 0:01:38]}  Re7 {[%clk 0:01:10]} 25. f5 {[%clk 0:01:26]}  Be8 {[%clk 0:00:45]} 26. Bg4 {[%clk 0:01:14]}  Qg5 {[%clk 0:00:38]} 27. Ref3 {[%clk 0:01:11]}  Re5 {[%clk 0:00:35]} 28. f6 {[%clk 0:01:08]}  gxf6 {[%clk 0:00:31]} 29. Rxf6 {[%clk 0:01:09]}  h5 {[%clk 0:00:20]} 30. Qf2 {[%clk 0:00:35]}  Re7 {[%clk 0:00:15]} 31. Bd1 {[%clk 0:00:32]}  Rg7 {[%clk 0:00:14]} 32. Rf4 {[%clk 0:00:27]}  Bb5 {[%clk 0:00:12]} 33. h4 {[%clk 0:00:27]}  Qe7 {[%clk 0:00:12]} 34. Re1 {[%clk 0:00:27]}  Nd3 {[%clk 0:00:11]} 35. Qe3 {[%clk 0:00:26]}  Nxf4 {[%clk 0:00:11]} 36. Qxf4 {[%clk 0:00:27]}  Qe5 {[%clk 0:00:11]} 37. Qd2 {[%clk 0:00:26]}  Re8 {[%clk 0:00:11]} 38. Kh2 {[%clk 0:00:25]}  Rf7 {[%clk 0:00:10]} 39. Re3 {[%clk 0:00:24]}  Rf4 {[%clk 0:00:10]} 40. Rf3 {[%clk 0:00:23]}  Rxh4+ {[%clk 0:00:10]} 41. Kg1 {[%clk 0:00:24]}  Re7 {[%clk 0:00:10]} 42. Qf2 {[%clk 0:00:23]}  Rg7 {[%clk 0:00:08]} 43. Bc2 {[%clk 0:00:23]}  Rg4 {[%clk 0:00:07]} 44. Nf1 {[%clk 0:00:23]}  Bxf1 {[%clk 0:00:07]} 45. Qxf1 {[%clk 0:00:22]}  h4 {[%clk 0:00:06]} 46. Kh1 {[%clk 0:00:22]}  Rg3 {[%clk 0:00:06]} 47. Rf4 {[%clk 0:00:22]}  g5 {[%clk 0:00:04]} 48. Rf5 {[%clk 0:00:22]}  Qc5 {[%clk 0:00:03]} 49. e5 {[%clk 0:00:23]}  Kh6 {[%clk 0:00:00]} 50. Rf6+ {[%clk 0:00:22]} 1-0


[Site "https://www.chess.com"]

[Event "Titled Tuesday Blitz October 31 Early 2023"]
[White "Atakhan, Abtin"]
[Black "Real_taiatai"]
[WhiteFideId "22502203"]
[WhiteElo "2707"]
[BlackElo "2365"]
[Result "1-0"]
[Round "1"]
[TimeControl "180+1"]
[Date "2023.10.31"]
[WhiteClock "0:00:39"]
[BlackClock "0:00:09"]
[Board "99"]

1. Nf3 {[%clk 0:03:00]}  d5 {[%clk 0:02:57]} 2. g3 {[%clk 0:02:59]}  Nf6 {[%clk 0:02:54]} 3. Bg2 {[%clk 0:03:00]}  Bf5 {[%clk 0:02:47]} 4. c4 {[%clk 0:02:59]}  c6 {[%clk 0:02:42]} 5. Qb3 {[%clk 0:02:58]}  Qb6 {[%clk 0:02:40]} 6. d3 {[%clk 0:02:58]}  Nbd7 {[%clk 0:02:39]} 7. Be3 {[%clk 0:02:46]}  dxc4 {[%clk 0:02:14]} 8. Qxc4 {[%clk 0:02:34]}  Qc7 {[%clk 0:01:29]} 9. Nc3 {[%clk 0:02:28]}  e5 {[%clk 0:01:20]} 10. O-O {[%clk 0:02:06]}  Bd6 {[%clk 0:01:17]} 11. Rfc1 {[%clk 0:02:02]}  Qd8 {[%clk 0:01:08]} 12. Ng5 {[%clk 0:01:48]}  O-O {[%clk 0:01:01]} 13. Qb3 {[%clk 0:01:31]}  Nb6 {[%clk 0:00:56]} 14. a4 {[%clk 0:01:24]}  h6 {[%clk 0:00:29]} 15. a5 {[%clk 0:01:24]}  hxg5 {[%clk 0:00:19]} 16. axb6 {[%clk 0:01:24]}  Ng4 {[%clk 0:00:19]} 17. bxa7 {[%clk 0:01:01]}  Nxe3 {[%clk 0:00:18]} 18. fxe3 {[%clk 0:01:02]}  Bc5 {[%clk 0:00:18]} 19. Nd1 {[%clk 0:01:03]}  Bxa7 {[%clk 0:00:18]} 20. Qxb7 {[%clk 0:01:03]}  Qb6 {[%clk 0:00:16]} 21. Qxb6 {[%clk 0:01:02]}  Bxb6 {[%clk 0:00:17]} 22. Bxc6 {[%clk 0:00:57]}  Rxa1 {[%clk 0:00:16]} 23. Rxa1 {[%clk 0:00:57]}  Rc8 {[%clk 0:00:16]} 24. Bd5 {[%clk 0:00:54]}  Rc7 {[%clk 0:00:15]} 25. Kg2 {[%clk 0:00:51]}  Kh7 {[%clk 0:00:15]} 26. e4 {[%clk 0:00:50]}  Bg4 {[%clk 0:00:15]} 27. Nc3 {[%clk 0:00:51]}  Bd4 {[%clk 0:00:14]} 28. Kf1 {[%clk 0:00:49]}  f6 {[%clk 0:00:15]} 29. Bc4 {[%clk 0:00:45]}  Rb7 {[%clk 0:00:14]} 30. Ra2 {[%clk 0:00:41]}  Bh3+ {[%clk 0:00:13]} 31. Ke1 {[%clk 0:00:41]}  Be3 {[%clk 0:00:13]} 32. Nd5 {[%clk 0:00:38]}  Bd4 {[%clk 0:00:14]} 33. b4 {[%clk 0:00:38]}  Bg1 {[%clk 0:00:11]} 34. b5 {[%clk 0:00:38]}  Bxh2 {[%clk 0:00:11]} 35. Kf2 {[%clk 0:00:39]}  Bf5 {[%clk 0:00:09]} 36. exf5 {[%clk 0:00:39]} 1-0


[Site "https://www.chess.com"]

[Event "Titled Tuesday Blitz October 31 Early 2023"]
[White "Ovetchkin, Roman"]
[Black "Kalajzic, Ivan"]
[WhiteFideId "4119991"]
[BlackFideId "14506378"]
[WhiteElo "2700"]
[BlackElo "2359"]
[Result "1-0"]
[Round "1"]
[TimeControl "180+1"]
[Date "2023.10.31"]
[WhiteClock "0:01:12"]
[BlackClock "0:00:54"]
[Board "101"]

1. d4 {[%clk 0:02:59]}  Nc6 {[%clk 0:02:59]} 2. d5 {[%clk 0:02:58]}  Ne5 {[%clk 0:02:59]} 3. Bf4 {[%clk 0:02:54]}  Ng6 {[%clk 0:02:59]} 4. Bg3 {[%clk 0:02:54]}  e5 {[%clk 0:02:59]} 5. dxe6 {[%clk 0:02:49]}  dxe6 {[%clk 0:02:56]} 6. Qxd8+ {[%clk 0:02:48]}  Kxd8 {[%clk 0:02:57]} 7. Nc3 {[%clk 0:02:48]}  Bd6 {[%clk 0:02:57]} 8. O-O-O {[%clk 0:02:48]}  Ke7 {[%clk 0:02:56]} 9. e4 {[%clk 0:02:41]}  Bxg3 {[%clk 0:02:54]} 10. hxg3 {[%clk 0:02:41]}  Nf6 {[%clk 0:02:53]} 11. f3 {[%clk 0:02:40]}  Bd7 {[%clk 0:02:51]} 12. g4 {[%clk 0:02:38]}  h6 {[%clk 0:02:48]} 13. Nge2 {[%clk 0:02:32]}  Rad8 {[%clk 0:02:44]} 14. Nd4 {[%clk 0:02:29]}  a6 {[%clk 0:02:38]} 15. g3 {[%clk 0:02:26]}  Ne5 {[%clk 0:02:27]} 16. Be2 {[%clk 0:02:26]}  c5 {[%clk 0:02:25]} 17. Nb3 {[%clk 0:02:26]}  b6 {[%clk 0:02:21]} 18. Rh4 {[%clk 0:02:02]}  g5 {[%clk 0:02:06]} 19. Rh2 {[%clk 0:01:59]}  h5 {[%clk 0:02:07]} 20. Rdh1 {[%clk 0:01:57]}  h4 {[%clk 0:01:52]} 21. gxh4 {[%clk 0:01:56]}  gxh4 {[%clk 0:01:53]} 22. Rxh4 {[%clk 0:01:57]}  Rxh4 {[%clk 0:01:54]} 23. Rxh4 {[%clk 0:01:57]}  Ng6 {[%clk 0:01:55]} 24. Rh1 {[%clk 0:01:56]}  Bc8 {[%clk 0:01:42]} 25. Na4 {[%clk 0:01:46]}  Nf4 {[%clk 0:01:42]} 26. Bd1 {[%clk 0:01:46]}  c4 {[%clk 0:01:41]} 27. Nd2 {[%clk 0:01:42]}  b5 {[%clk 0:01:40]} 28. Nc3 {[%clk 0:01:40]}  Nd7 {[%clk 0:01:30]} 29. Ne2 {[%clk 0:01:35]}  Ng6 {[%clk 0:01:08]} 30. b4 {[%clk 0:01:12]}  Nde5 {[%clk 0:00:54]} 1-0


[Site "https://www.chess.com"]

[Event "Titled Tuesday Blitz October 31 Early 2023"]
[White "BashirovKemal"]
[Black "Avalos Parra, Joao"]
[BlackFideId "3402541"]
[WhiteElo "2685"]
[BlackElo "2340"]
[Result "1-0"]
[Round "1"]
[TimeControl "180+1"]
[Date "2023.10.31"]
[WhiteClock "0:00:26"]
[BlackClock "0:00:04"]
[Board "109"]

1. d4 {[%clk 0:03:00]}  d5 {[%clk 0:03:00]} 2. c4 {[%clk 0:03:01]}  e6 {[%clk 0:02:59]} 3. Nc3 {[%clk 0:03:01]}  Nf6 {[%clk 0:03:00]} 4. Bg5 {[%clk 0:03:02]}  Bb4 {[%clk 0:02:56]} 5. e3 {[%clk 0:02:59]}  O-O {[%clk 0:02:52]} 6. Nf3 {[%clk 0:02:59]}  Nbd7 {[%clk 0:02:51]} 7. Qc2 {[%clk 0:02:59]}  a6 {[%clk 0:02:48]} 8. cxd5 {[%clk 0:02:55]}  exd5 {[%clk 0:02:49]} 9. Bd3 {[%clk 0:02:55]}  c5 {[%clk 0:02:46]} 10. O-O {[%clk 0:02:53]}  c4 {[%clk 0:02:45]} 11. Be2 {[%clk 0:02:34]}  Bxc3 {[%clk 0:02:32]} 12. bxc3 {[%clk 0:02:32]}  Re8 {[%clk 0:02:31]} 13. Nd2 {[%clk 0:02:30]}  h6 {[%clk 0:02:26]} 14. Bh4 {[%clk 0:02:30]}  g5 {[%clk 0:02:23]} 15. Bg3 {[%clk 0:02:30]}  Nf8 {[%clk 0:02:23]} 16. f4 {[%clk 0:02:04]}  Rxe3 {[%clk 0:02:15]} 17. fxg5 {[%clk 0:02:00]}  Rxe2 {[%clk 0:02:15]} 18. gxf6 {[%clk 0:01:57]}  Qe8 {[%clk 0:02:01]} 19. Rae1 {[%clk 0:01:53]}  Qe3+ {[%clk 0:01:58]} 20. Kh1 {[%clk 0:01:15]}  Rxd2 {[%clk 0:01:20]} 21. Qc1 {[%clk 0:01:09]}  Qd3 {[%clk 0:01:16]} 22. Bf4 {[%clk 0:01:04]}  Rc2 {[%clk 0:01:03]} 23. Qb1 {[%clk 0:01:04]}  Bf5 {[%clk 0:00:38]} 24. Rf3 {[%clk 0:00:59]}  Qxf3 {[%clk 0:00:09]} 25. gxf3 {[%clk 0:01:00]}  Ng6 {[%clk 0:00:08]} 26. Qxb7 {[%clk 0:00:55]}  Rf8 {[%clk 0:00:07]} 27. Bxh6 {[%clk 0:00:52]}  Rd8 {[%clk 0:00:08]} 28. h4 {[%clk 0:00:49]}  Rd7 {[%clk 0:00:07]} 29. Qc8+ {[%clk 0:00:46]}  Kh7 {[%clk 0:00:08]} 30. h5 {[%clk 0:00:47]}  Kxh6 {[%clk 0:00:07]} 31. Rg1 {[%clk 0:00:39]}  Rd6 {[%clk 0:00:05]} 32. Qg8 {[%clk 0:00:33]}  Rxf6 {[%clk 0:00:04]} 33. hxg6 {[%clk 0:00:26]}  Bxg6 {[%clk 0:00:04]} 34. Qh8+ {[%clk 0:00:26]}  Bh7 {[%clk 0:00:04]} 35. Qxf6+ {[%clk 0:00:26]} 1-0


[Site "https://www.chess.com"]

[Event "Titled Tuesday Blitz October 31 Early 2023"]
[White "Alahakoon, Isuru"]
[Black "Amilal Munkhdalai"]
[WhiteFideId "9900993"]
[BlackFideId "4903250"]
[WhiteElo "2337"]
[BlackElo "2683"]
[Result "0-1"]
[Round "1"]
[TimeControl "180+1"]
[Date "2023.10.31"]
[WhiteClock "0:00:05"]
[BlackClock "0:02:00"]
[Board "110"]

1. Nf3 {[%clk 0:02:50]}  Nf6 {[%clk 0:02:59]} 2. d4 {[%clk 0:02:50]}  d5 {[%clk 0:02:59]} 3. e3 {[%clk 0:02:49]}  c5 {[%clk 0:02:58]} 4. b3 {[%clk 0:02:46]}  Nc6 {[%clk 0:02:55]} 5. Bb2 {[%clk 0:02:45]}  Bg4 {[%clk 0:02:53]} 6. Nbd2 {[%clk 0:02:44]}  e6 {[%clk 0:02:51]} 7. Bd3 {[%clk 0:02:42]}  Bd6 {[%clk 0:02:48]} 8. O-O {[%clk 0:02:40]}  O-O {[%clk 0:02:48]} 9. a3 {[%clk 0:02:38]}  Rc8 {[%clk 0:02:45]} 10. Qe1 {[%clk 0:02:36]}  Qc7 {[%clk 0:02:44]} 11. dxc5 {[%clk 0:02:32]}  Bxc5 {[%clk 0:02:44]} 12. Bxf6 {[%clk 0:02:32]}  gxf6 {[%clk 0:02:44]} 13. b4 {[%clk 0:02:28]}  Bd6 {[%clk 0:02:42]} 14. e4 {[%clk 0:02:13]}  d4 {[%clk 0:02:35]} 15. h3 {[%clk 0:01:53]}  Bh5 {[%clk 0:02:28]} 16. b5 {[%clk 0:01:48]}  Ne5 {[%clk 0:02:23]} 17. Nxd4 {[%clk 0:01:48]}  Nxd3 {[%clk 0:02:23]} 18. cxd3 {[%clk 0:01:47]}  Be5 {[%clk 0:02:23]} 19. N2b3 {[%clk 0:01:33]}  Qd6 {[%clk 0:02:23]} 20. Qe3 {[%clk 0:01:04]}  Rfd8 {[%clk 0:02:19]} 21. Qh6 {[%clk 0:00:41]}  Bg6 {[%clk 0:02:18]} 22. Nf3 {[%clk 0:00:28]}  Bxa1 {[%clk 0:02:17]} 23. Rxa1 {[%clk 0:00:27]}  Qxd3 {[%clk 0:02:17]} 24. Nbd2 {[%clk 0:00:25]}  Rc2 {[%clk 0:02:14]} 25. Nf1 {[%clk 0:00:21]}  Qe2 {[%clk 0:02:10]} 26. Qh4 {[%clk 0:00:18]}  Qxe4 {[%clk 0:02:09]} 27. Qxe4 {[%clk 0:00:15]}  Bxe4 {[%clk 0:02:10]} 28. Ne3 {[%clk 0:00:16]}  Rb2 {[%clk 0:02:08]} 29. a4 {[%clk 0:00:14]}  Bxf3 {[%clk 0:02:07]} 30. gxf3 {[%clk 0:00:13]}  Rd4 {[%clk 0:02:05]} 31. Rc1 {[%clk 0:00:12]}  Rxa4 {[%clk 0:02:03]} 32. Ng4 {[%clk 0:00:12]}  Kg7 {[%clk 0:02:03]} 33. Rc5 {[%clk 0:00:10]}  b6 {[%clk 0:02:02]} 34. Rc7 {[%clk 0:00:05]}  h5 {[%clk 0:02:00]} 0-1


[Site "https://www.chess.com"]

[Event "Titled Tuesday Blitz October 31 Early 2023"]
[White "Mendez Fortes, Eduardo Jesus"]
[Black "Szente Varga, Fruzsina"]
[WhiteFideId "3502376"]
[BlackFideId "712264"]
[WhiteElo "2677"]
[BlackElo "2330"]
[Result "1-0"]
[Round "1"]
[TimeControl "180+1"]
[Date "2023.10.31"]
[WhiteClock "0:01:43"]
[BlackClock "0:00:00"]
[Board "113"]

1. e4 {[%clk 0:02:48]}  c5 {[%clk 0:02:48]} 2. Nf3 {[%clk 0:02:48]}  Nc6 {[%clk 0:02:48]} 3. d4 {[%clk 0:02:48]}  cxd4 {[%clk 0:02:48]} 4. Nxd4 {[%clk 0:02:49]}  g6 {[%clk 0:02:48]} 5. c4 {[%clk 0:02:49]}  Bg7 {[%clk 0:02:48]} 6. Be3 {[%clk 0:02:45]}  Nf6 {[%clk 0:02:46]} 7. Nc3 {[%clk 0:02:45]}  d6 {[%clk 0:02:46]} 8. Be2 {[%clk 0:02:46]}  O-O {[%clk 0:02:46]} 9. O-O {[%clk 0:02:46]}  Bd7 {[%clk 0:02:46]} 10. Qd2 {[%clk 0:02:46]}  Nxd4 {[%clk 0:02:39]} 11. Bxd4 {[%clk 0:02:47]}  Bc6 {[%clk 0:02:39]} 12. f3 {[%clk 0:02:47]}  a5 {[%clk 0:02:39]} 13. Rab1 {[%clk 0:02:46]}  Nd7 {[%clk 0:02:17]} 14. Be3 {[%clk 0:02:46]}  a4 {[%clk 0:02:07]} 15. Rfc1 {[%clk 0:02:46]}  Nc5 {[%clk 0:02:07]} 16. b4 {[%clk 0:02:44]}  axb3 {[%clk 0:02:07]} 17. axb3 {[%clk 0:02:44]}  Ra3 {[%clk 0:01:52]} 18. Bd1 {[%clk 0:02:39]}  Qa8 {[%clk 0:01:26]} 19. b4 {[%clk 0:02:36]}  Na4 {[%clk 0:01:00]} 20. Bxa4 {[%clk 0:02:29]}  Bxa4 {[%clk 0:01:01]} 21. Nd5 {[%clk 0:02:24]}  Qd8 {[%clk 0:00:42]} 22. b5 {[%clk 0:02:18]}  e6 {[%clk 0:00:15]} 23. Nb6 {[%clk 0:02:17]}  h5 {[%clk 0:00:13]} 24. Bf2 {[%clk 0:02:15]}  Kh7 {[%clk 0:00:13]} 25. Qb4 {[%clk 0:02:12]}  Ra2 {[%clk 0:00:11]} 26. Nxa4 {[%clk 0:02:12]}  Rxf2 {[%clk 0:00:02]} 27. Kxf2 {[%clk 0:02:11]}  Bd4+ {[%clk 0:00:02]} 28. Kf1 {[%clk 0:02:06]}  Qh4 {[%clk 0:00:03]} 29. Qd2 {[%clk 0:02:04]}  e5 {[%clk 0:00:03]} 30. g3 {[%clk 0:01:54]}  Qh3+ {[%clk 0:00:02]} 31. Qg2 {[%clk 0:01:54]}  Qe6 {[%clk 0:00:01]} 32. Nc3 {[%clk 0:01:53]}  f5 {[%clk 0:00:01]} 33. Qe2 {[%clk 0:01:43]}  fxe4 {[%clk 0:00:01]} 34. Nxe4 {[%clk 0:01:43]}  Qh3+ {[%clk 0:00:00]} 35. Ke1 {[%clk 0:01:43]} 1-0


[Site "https://www.chess.com"]

[Event "Titled Tuesday Blitz October 31 Early 2023"]
[White "Horobetz, Graham"]
[Black "Manon-og, Ramon Jr."]
[WhiteFideId "2047322"]
[BlackFideId "5200776"]
[WhiteElo "2673"]
[BlackElo "2326"]
[Result "1-0"]
[Round "1"]
[TimeControl "180+1"]
[Date "2023.10.31"]
[WhiteClock "0:00:23"]
[BlackClock "0:00:08"]
[Board "115"]

1. e4 {[%clk 0:03:00]}  c5 {[%clk 0:02:59]} 2. Nf3 {[%clk 0:03:00]}  d6 {[%clk 0:02:59]} 3. Bb5+ {[%clk 0:03:00]}  Nd7 {[%clk 0:02:58]} 4. a4 {[%clk 0:02:59]}  a6 {[%clk 0:02:58]} 5. Be2 {[%clk 0:02:56]}  Ngf6 {[%clk 0:02:58]} 6. Nc3 {[%clk 0:02:55]}  g6 {[%clk 0:02:58]} 7. O-O {[%clk 0:02:51]}  Bg7 {[%clk 0:02:58]} 8. d3 {[%clk 0:02:45]}  O-O {[%clk 0:02:58]} 9. h3 {[%clk 0:02:43]}  b6 {[%clk 0:02:58]} 10. Nd2 {[%clk 0:02:38]}  Bb7 {[%clk 0:02:54]} 11. f4 {[%clk 0:02:37]}  e6 {[%clk 0:02:47]} 12. f5 {[%clk 0:02:21]}  exf5 {[%clk 0:02:47]} 13. exf5 {[%clk 0:02:21]}  Ne5 {[%clk 0:02:42]} 14. Nf3 {[%clk 0:02:20]}  Qd7 {[%clk 0:02:20]} 15. Nxe5 {[%clk 0:02:18]}  dxe5 {[%clk 0:02:21]} 16. Bf3 {[%clk 0:02:11]}  Nd5 {[%clk 0:02:11]} 17. Bxd5 {[%clk 0:02:04]}  Bxd5 {[%clk 0:02:12]} 18. f6 {[%clk 0:02:04]}  Bh8 {[%clk 0:02:11]} 19. Nxd5 {[%clk 0:01:53]}  Qxd5 {[%clk 0:02:11]} 20. Qe2 {[%clk 0:01:48]}  Rfe8 {[%clk 0:02:11]} 21. Qe4 {[%clk 0:01:04]}  Rad8 {[%clk 0:02:00]} 22. Bg5 {[%clk 0:00:54]}  Qe6 {[%clk 0:01:45]} 23. c3 {[%clk 0:00:40]}  Qb3 {[%clk 0:01:35]} 24. Rf2 {[%clk 0:00:37]}  Qe6 {[%clk 0:01:18]} 25. Raf1 {[%clk 0:00:30]}  Qd7 {[%clk 0:01:17]} 26. Rf3 {[%clk 0:00:28]}  Qd6 {[%clk 0:00:57]} 27. h4 {[%clk 0:00:27]}  Rd7 {[%clk 0:00:52]} 28. h5 {[%clk 0:00:27]}  Qd5 {[%clk 0:00:42]} 29. hxg6 {[%clk 0:00:24]}  hxg6 {[%clk 0:00:38]} 30. Qh4 {[%clk 0:00:24]}  e4 {[%clk 0:00:08]} 31. Rh3 {[%clk 0:00:23]} 1-0


[Site "https://www.chess.com"]